bitfinex/quotes_ETHUSD_20250328
["timestamp","ask_amount","ask_price","bid_price","bid_amount"]
[1743180991885,6.06,1875.7,1875.4,5.33219]
[1743180992410,1.08897443,1875.6,1875.4,5.33219]
[1743180992618,1.08897443,1875.6,1875.3,5.33237]
[1743180992789,1.08897443,1875.6,1875.3,10.66464]
[1743180992989,1.08897443,1875.6,1875.4,5.33219]
[1743180994998,6.42071443,1875.6,1875.3,5.33238]
[1743180995224,1.08897443,1875.6,1875.3,10.6647]
[1743180995425,1.08897443,1875.6,1875.3,11.8605661]
[1743180995626,1.08897443,1875.6,1875.4,5.33215]
[1743180996147,1.08897443,1875.6,1875.5,5.33191]
[1743180999249,5.33208,1875.5,1875.1,5.33287]
[1743180999642,5.3323,1875.4,1875.0,5.33331]
[1743181000022,6.42062443,1875.6,1875.2,5.33267]
[1743181000224,11.75241443,1875.6,1875.2,5.33267]
[1743181000581,5.408,1875.7,1875.0,5.33306]
[1743181000738,5.33248,1875.3,1875.0,5.33306]
[1743181001123,1.09339821,1875.3,1875.1,5.33288]
[1743181001321,1.09339821,1875.3,1875.2,5.33276]
[1743181001748,1.09339821,1875.3,1875.1,5.866318]
[1743181001953,1.09339821,1875.3,1875.0,5.33322]
[1743181002524,1.09339821,1875.3,1875.0,5.33317]
[1743181002750,1.09339821,1875.3,1875.1,5.33292]
[1743181002953,1.09339821,1875.3,1875.0,5.33317]
[1743181003351,1.09339821,1875.3,1875.0,10.66627]
[1743181003740,1.09339821,1875.3,1875.0,5.3331]
[1743181003947,6.42592821,1875.3,1875.0,5.3331]
[1743181004644,1.09339821,1875.3,1875.0,5.3331]
[1743181005261,6.42596821,1875.3,1875.0,5.33332]
[1743181006038,6.42596821,1875.3,1874.9,5.33356]
[1743181006039,5.33277,1875.2,1874.9,5.33356]
[1743181006357,5.33305,1875.1,1874.8,5.33378]
[1743181006543,5.33339,1875.0,1874.6,6.12237]
[1743181006856,5.33339,1875.0,1874.7,5.33415]
[1743181007658,5.33339,1875.0,1874.6,5.33427]
[1743181007846,5.33339,1875.0,1874.6,10.66855]
[1743181008048,5.33339,1875.0,1874.6,10.66859]
[1743181008554,10.66622,1875.1,1874.7,5.33403]
[1743181008764,1.05674706,1874.8,1874.7,10.66799]
[1743181009063,1.05674706,1874.8,1874.7,11.734789]
[1743181009563,1.05674706,1874.8,1874.7,6.400759]
[1743181009764,1.05674706,1874.8,1874.7,5.33396]
[1743181010239,1.05674706,1874.8,1874.4,6.12312]
[1743181010240,1.05674706,1874.8,1874.5,5.3346]
[1743181010440,1.05674706,1874.8,1874.6,5.33437]
[1743181010645,1.05674706,1874.8,1874.7,5.33418]
[1743181011042,1.05674706,1874.8,1874.6,5.33436]
[1743181011374,1.05674706,1874.8,1874.5,10.6692]
[1743181011538,1.05674706,1874.8,1874.6,5.3344]
[1743181012162,1.05674706,1874.8,1874.6,10.66872]
[1743181012677,1.05674706,1874.8,1874.6,5.33432]
[1743181013060,5.33431,1874.7,1874.3,5.33519]
[1743181013487,5.33431,1874.7,1874.1,0.05]
[1743181013488,5.33419,1874.7,1874.1,0.05]
[1743181013784,11.72482706,1874.8,1874.4,5.33482]
[1743181014152,1.05674706,1874.8,1874.6,5.33431]
[1743181014345,1.05674706,1874.8,1874.7,5.33418]
[1743181015777,1.05674706,1874.8,1874.6,6.09491]
[1743181015976,1.05674706,1874.8,1874.6,11.42925]
[1743181016168,1.05674706,1874.8,1874.6,6.09491]
[1743181016365,1.05674706,1874.8,1874.7,5.33418]
[1743181016567,5.33281,1875.2,1874.9,5.33357]
[1743181017077,1.04876847,1875.1,1875.0,5.33333]
[1743181017774,1.04876847,1875.1,1874.9,6.15992]
[1743181018151,1.04876847,1875.1,1874.9,11.49339]
[1743181018350,1.04876847,1875.1,1875.0,5.33333]
[1743181018550,1.04876847,1875.1,1874.9,11.49337]
[1743181019162,1.04876847,1875.1,1875.0,5.33333]
[1743181021775,38.89465,1875.4,1875.0,5.33333]
[1743181021977,10.66465,1875.4,1875.0,5.33333]
[1743181022175,5.3325,1875.3,1875.0,5.33333]
[1743181022574,1.09466948,1875.2,1875.0,5.33333]
[1743181023109,6.42745948,1875.2,1874.9,5.33348]
[1743181023261,1.09466948,1875.2,1874.9,10.66698]
[1743181023933,5.3332,1875.1,1874.7,7.232039]
[1743181024200,5.33416,1874.8,1874.4,10.66986]
[1743181024672,5.33416,1874.8,1874.5,5.33475]
[1743181025489,5.33416,1874.8,1874.4,10.6697]
[1743181025686,5.33365,1874.9,1874.6,5.33438]
[1743181026079,1.09302125,1874.7,1874.6,5.33438]
[1743181026695,1.09302125,1874.7,1874.5,5.3347]
[1743181027086,1.09302125,1874.7,1874.5,5.33457]
[1743181027373,6.42729125,1874.7,1874.3,6.12766]
[1743181027599,6.42729125,1874.7,1874.4,5.33503]
[1743181027904,5.33486,1874.5,1874.1,10.72145]
[1743181028196,5.33486,1874.5,1874.2,5.33559]
[1743181028872,5.33486,1874.5,1874.1,10.72141]
[1743181029303,5.33486,1874.5,1874.2,5.33557]
[1743181029802,6.42724125,1874.7,1874.3,5.33508]
[1743181029997,5.344,1874.8,1874.5,5.33461]
[1743181030208,5.33372,1874.9,1874.5,5.33461]
[1743181030507,5.33398,1874.8,1874.5,5.33461]
[1743181030797,1.04986623,1874.6,1874.5,5.33461]
[1743181031804,1.04986623,1874.6,1874.4,5.33499]
[1743181033006,1.04986623,1874.6,1874.5,5.33475]
[1743181034008,16.7272,1875.1,1874.7,5.33404]
[1743181034182,22.06347,1875.1,1874.7,5.33404]
[1743181034382,1.04890314,1874.8,1874.7,5.33404]
[1743181034587,22.06347,1875.1,1874.7,10.66807]
[1743181034891,5.33335,1875.0,1874.7,5.33403]
[1743181035075,16.7302,1875.1,1874.8,5.3338]
[1743181035271,1.04440876,1874.9,1874.8,5.3338]
[1743181035472,1.04440876,1874.9,1874.8,6.400579]
[1743181035688,5.337,1875.1,1874.8,6.400579]
[1743181035888,10.67014,1875.1,1874.8,5.3338]
[1743181036375,5.337,1875.1,1874.8,5.33378]
[1743181036588,5.337,1875.1,1874.8,10.66751]
[1743181036792,1.0460139,1875.0,1874.8,5.3337]
[1743181036998,1.0460139,1875.0,1874.8,5.86707]
[1743181037410,1.0460139,1875.0,1874.9,5.3335]
[1743181037706,1.0460139,1875.0,1874.9,6.1099]
[1743181038705,1.0460139,1875.0,1874.8,5.86707]
[1743181038706,1.0460139,1875.0,1874.8,5.3337]
[1743181038906,6.3793739,1875.0,1874.7,11.44692]
[1743181039113,1.0460139,1875.0,1874.7,7.257482]
[1743181039810,1.0460139,1875.0,1874.7,5.33409]
[1743181039811,6.3794739,1875.0,1874.7,5.33409]
[1743181040233,1.0460139,1875.0,1874.8,5.33384]
[1743181040386,1.0460139,1875.0,1874.8,5.33375]
[1743181040586,1.0460139,1875.0,1874.8,10.66751]
[1743181040928,1.0460139,1875.0,1874.7,5.33403]
[1743181041133,1.0460139,1875.0,1874.7,5.33398]
[1743181041613,1.0460139,1875.0,1874.5,5.33462]
[1743181041614,5.33379,1874.9,1874.5,5.33462]
[1743181042133,5.33379,1874.9,1874.6,5.33446]
[1743181042307,1.0460139,1875.0,1874.7,5.33392]
[1743181042620,1.0460139,1875.0,1874.8,5.33389]
[1743181043434,5.33368,1874.9,1874.6,5.33438]
[1743181045400,5.33368,1874.9,1874.5,5.33474]
[1743181045731,5.33408,1874.8,1874.4,10.66991]
[1743181046033,5.33408,1874.8,1874.5,5.3347]
[1743181046231,5.33361,1874.9,1874.3,6.09362]
[1743181046430,10.64436,1875.0,1874.6,5.3342]
[1743181046657,1.08135572,1874.7,1874.6,5.3342]
[1743181047652,11.39299,1875.2,1874.5,0.7955]
[1743181047860,16.72592,1875.2,1874.8,5.33388]
[1743181048151,11.39293,1875.2,1874.8,5.33388]
[1743181048306,16.72587,1875.2,1874.8,10.66751]
[1743181048711,1.07037581,1874.9,1874.8,5.33363]
[1743181049557,1.07037581,1874.9,1874.7,10.66821]
[1743181049858,28.237,1875.3,1875.1,5.33304]
[1743181050353,1.06299317,1875.2,1875.1,5.33304]
[1743181051540,28.237,1875.3,1875.1,10.66596]
[1743181052962,29.30630587,1875.3,1875.1,10.66596]
[1743181053453,29.30630587,1875.3,1875.1,10.66586]
[1743181053658,29.30630587,1875.3,1875.1,10.66585]
[1743181054456,29.30630587,1875.3,1875.1,10.66582]
[1743181055055,29.30630587,1875.3,1875.1,5.3329]
[1743181055278,29.30630587,1875.3,1875.0,10.66642]
[1743181055620,29.30630587,1875.3,1875.1,5.33303]
[1743181055818,29.30630587,1875.3,1874.8,1.848377]
[1743181056019,29.30630587,1875.3,1874.8,6.11544]
[1743181056217,10.66693,1875.0,1874.7,5.33408]
[1743181056562,5.33366,1874.9,1874.6,5.3343]
[1743181057367,5.33343,1875.0,1874.6,10.66856]
[1743181058158,5.33343,1875.0,1874.6,5.33426]
[1743181058314,10.66751,1874.9,1874.5,5.33452]
[1743181058517,1.0559697,1874.9,1874.5,5.33452]
[1743181058720,5.33404,1874.8,1874.4,10.66974]
[1743181058946,5.33404,1874.8,1874.4,6.478584]
[1743181059250,5.33404,1874.8,1874.4,11.813474]
[1743181059556,5.33404,1874.8,1874.5,5.33473]
[1743181060819,5.33435,1874.7,1874.3,6.10329]
[1743181061178,6.06,1875.0,1874.3,0.7681]
[1743181061455,11.39347,1875.0,1874.6,6.15672]
[1743181061676,1.06727867,1874.7,1874.6,6.15672]
[1743181061835,1.06727867,1874.7,1874.6,7.305855]
[1743181064638,1.06727867,1874.7,1874.6,6.483455]
[1743181064961,1.06727867,1874.7,1874.6,5.33432]
[1743181066037,1.06727867,1874.7,1874.5,10.66925]
[1743181066245,1.06727867,1874.7,1874.5,5.33462]
[1743181066566,1.06727867,1874.7,1874.6,5.33447]
[1743181067341,1.06727867,1874.7,1874.5,5.33462]
[1743181067564,1.06727867,1874.7,1874.5,5.943682]
[1743181068074,1.06727867,1874.7,1874.6,5.33447]
[1743181068391,1.06727867,1874.7,1874.5,5.943682]
[1743181068546,1.06727867,1874.7,1874.5,11.278332]
[1743181069353,1.06727867,1874.7,1874.5,5.943622]
[1743181069685,1.06727867,1874.7,1874.6,5.33447]
[1743181070405,1.06727867,1874.7,1874.5,5.943622]
[1743181070562,1.06727867,1874.7,1874.6,0.5943622]
[1743181070747,1.06727867,1874.7,1874.6,5.9288322]
[1743181070952,1.06727867,1874.7,1874.6,0.5943622]
[1743181071193,1.06727867,1874.7,1874.5,5.33456]
[1743181071497,1.06727867,1874.7,1874.4,11.42586]
[1743181071691,1.06727867,1874.7,1874.5,5.33472]
[1743181072184,1.06727867,1874.7,1874.5,10.66938]
[1743181072372,1.06727867,1874.7,1874.5,5.33466]
[1743181072898,1.06727867,1874.7,1874.2,0.7686]
[1743181073050,5.3355,1874.3,1874.1,0.05]
[1743181073249,5.3356,1874.2,1874.1,0.05]
[1743181073994,11.39493,1874.5,1874.1,0.05]
[1743181074166,10.62221,1874.7,1874.3,6.13261]
[1743181074364,5.33421,1874.7,1874.3,6.745871]
[1743181074754,10.66809,1874.8,1874.4,5.3349]
[1743181075666,14.898,1875.0,1874.5,5.33454]
[1743181075667,1.0692601,1874.6,1874.5,5.33454]
[1743181075881,1.0692601,1874.6,1874.4,5.335]
[1743181076091,1.0692601,1874.6,1874.5,0.5335]
[1743181076623,1.0692601,1874.6,1874.4,5.33486]
[1743181077568,1.0692601,1874.6,1874.4,10.66981]
[1743181077998,1.0692601,1874.6,1874.4,5.33486]
[1743181078306,1.0692601,1874.6,1874.4,10.66976]
[1743181078605,1.0692601,1874.6,1874.4,5.33486]
[1743181078901,1.0692601,1874.6,1874.3,12.081111]
[1743181079295,1.0692601,1874.6,1874.4,6.5431111]
[1743181080070,1.0692601,1874.6,1874.4,11.8779511]
[1743181080507,1.0692601,1874.6,1874.4,11.8779011]
[1743181080718,1.0692601,1874.6,1874.4,6.5430011]
[1743181081209,1.0692601,1874.6,1874.5,5.33475]
[1743181081387,1.0692601,1874.6,1874.5,6.52252511]
[1743181082465,1.0692601,1874.6,1874.5,1.18777511]
[1743181082711,1.0692601,1874.6,1874.4,5.33489]
[1743181084108,1.0692601,1874.6,1874.4,10.66978]
[1743181084314,1.0692601,1874.6,1874.5,5.33475]
[1743181084467,1.0692601,1874.6,1874.4,5.33489]
[1743181084675,1.0692601,1874.6,1874.4,10.66979]
[1743181085006,1.0692601,1874.6,1874.5,5.33475]
[1743181085974,10.66759,1874.9,1874.5,5.33475]
[1743181086309,3.85483539,1874.7,1874.1,0.8718]
[1743181086519,5.33515,1874.4,1874.1,5.38579]
[1743181086811,5.33481,1874.5,1874.1,5.3858]
[1743181087105,5.33512,1874.4,1874.1,5.3858]
[1743181087476,5.33481,1874.5,1874.2,5.33557]
[1743181087967,5.33481,1874.5,1874.2,10.67106]
[1743181088373,1.08957451,1874.5,1874.3,6.1408]
[1743181088706,1.08957451,1874.5,1874.3,11.476]
[1743181088914,1.08957451,1874.5,1874.3,11.47604]
[1743181089128,1.08957451,1874.5,1874.2,11.743156]
[1743181089423,1.08957451,1874.5,1874.2,10.67092]
[1743181089725,11.75933451,1874.5,1874.1,11.52572]
[1743181089881,5.33533,1874.3,1874.1,0.05]
[1743181090889,5.33506,1874.4,1874.1,5.38588]
[1743181091226,11.71235451,1874.5,1874.1,10.72156]
[1743181091391,1.08957451,1874.5,1874.2,5.33545]
[1743181091597,1.08957451,1874.5,1874.2,11.5002]
[1743181091786,1.08957451,1874.5,1874.3,5.3353]
[1743181092323,6.42434451,1874.5,1874.2,6.16475]
[1743181092629,6.42434451,1874.5,1874.2,5.33558]
[1743181095202,1.08957451,1874.5,1874.3,6.14288]
[1743181096120,1.08957451,1874.5,1874.2,5.33544]
[1743181096292,1.08957451,1874.5,1874.2,10.6709]
[1743181096498,1.08957451,1874.5,1874.3,5.33521]
[1743181098121,1.08957451,1874.5,1874.2,5.3356]
[1743181098328,5.33534,1874.3,1874.1,0.05]
[1743181098618,6.42436451,1874.5,1874.1,0.05]
[1743181098792,5.33515,1874.4,1874.1,0.05]
[1743181099120,5.33515,1874.4,1874.1,5.38589]
[1743181099428,10.67036,1874.4,1874.1,0.05]
[1743181099629,5.33515,1874.4,1874.1,5.38589]
[1743181099799,11.3945,1874.6,1874.2,0.7996]
[1743181100121,11.3945,1874.6,1874.3,5.33521]
[1743181100797,12.48910774,1874.6,1874.3,5.33519]
[1743181101325,7.15460774,1874.6,1874.4,5.33502]
[1743181101698,8.288,1874.9,1874.4,5.33498]
[1743181101907,5.334,1874.8,1874.4,5.33498]
[1743181102197,5.33428,1874.7,1874.4,10.66987]
[1743181102523,6.42995784,1874.7,1874.3,5.33513]
[1743181102736,6.42995784,1874.7,1874.4,5.33495]
[1743181102898,1.09567784,1874.7,1874.4,5.33495]
[1743181103225,5.33395,1874.8,1874.5,6.12112]
[1743181103226,5.33391,1874.8,1874.5,6.12112]
[1743181103394,10.66798,1874.8,1874.5,6.12112]
[1743181103726,10.66798,1874.8,1874.5,0.7865]
[1743181103916,5.33429,1874.7,1874.4,5.33502]
[1743181104318,5.33429,1874.7,1874.3,11.48249]
[1743181104527,10.6687,1874.7,1874.3,6.1472]
[1743181104691,10.66868,1874.7,1874.3,6.14719]
[1743181104895,5.33429,1874.7,1874.3,6.14719]
[1743181105131,10.66863,1874.7,1874.4,5.33503]
[1743181105341,5.33454,1874.6,1874.3,6.14719]
[1743181105519,5.33454,1874.6,1874.3,6.14717]
[1743181106733,10.66918,1874.6,1874.2,5.33557]
[1743181106936,5.33472,1874.6,1874.2,5.33557]
[1743181107111,5.33506,1874.4,1874.1,6.19978]
[1743181107307,10.66988,1874.5,1874.1,6.19967]
[1743181108131,11.7285147,1874.5,1874.1,11.53541]
[1743181108441,5.33515,1874.4,1874.1,6.19967]
[1743181109638,6.3935447,1874.5,1874.1,11.53543]
[1743181110309,6.3935447,1874.5,1874.2,5.33543]
[1743181111146,6.3935447,1874.5,1874.1,6.19987]
[1743181111507,5.33519,1874.4,1874.1,6.19987]
[1743181112343,11.7284147,1874.5,1874.1,11.53556]
[1743181112730,11.7284147,1874.5,1874.1,6.19969]
[1743181114246,11.7284147,1874.5,1874.1,11.53543]
[1743181115255,5.33505,1874.4,1874.1,6.19969]
[1743181115847,1.0586347,1874.5,1874.1,0.864]
[1743181116150,5.3356,1874.2,1874.1,0.05]
[1743181119816,10.67095,1874.3,1874.1,0.05]
[1743181120044,5.3356,1874.2,1874.1,0.05]
[1743181120854,6.40076853,1874.2,1874.1,0.05]
[1743181130725,6.95076853,1874.2,1874.1,0.05]
[1743181130962,11.68876853,1874.2,1874.1,0.05]
[1743181131164,6.40076853,1874.2,1874.1,0.05]
[1743181131325,1.06516853,1874.2,1874.1,0.05]
[1743181131532,1.06516853,1874.2,1874.1,5.38589]
[1743181131840,40.70035489,1874.6,1874.4,0.7521]
[1743181132061,46.03498489,1874.6,1874.4,0.7521]
[1743181132244,40.70035489,1874.6,1874.4,0.7521]
[1743181133240,46.03501489,1874.6,1874.4,0.7521]
[1743181134140,40.70035489,1874.6,1874.4,0.7521]
[1743181134454,5.33475,1874.5,1874.4,0.7521]
[1743181134762,5.33475,1874.5,1874.1,0.05]
[1743181134763,5.3356,1874.2,1874.1,0.05]
[1743181135153,5.33544,1874.3,1874.1,0.05]
[1743181135327,10.62208,1874.4,1874.1,0.05]
[1743181135841,5.33508,1874.4,1874.1,0.05]
[1743181136843,10.67031,1874.4,1874.1,0.05]
[1743181137046,5.33508,1874.4,1874.1,0.05]
[1743181137273,5.33508,1874.4,1874.1,5.38588]
[1743181138558,10.6703,1874.4,1874.1,0.05]
[1743181138762,5.33548,1874.3,1874.1,0.05]
[1743181140383,10.67105,1874.3,1874.1,0.05]
[1743181140566,5.33548,1874.3,1874.1,0.05]
[1743181140866,5.33548,1874.3,1873.3,0.8029]
[1743181140867,5.33735,1873.6,1873.3,0.8029]
[1743181141041,5.33788,1873.4,1873.1,0.8029]
[1743181141230,5.33761,1873.5,1873.1,6.14161]
[1743181141431,5.33761,1873.5,1873.1,12.628258]
[1743181141628,5.33734,1873.6,1873.3,0.7504]
[1743181142271,5.33675,1873.8,1873.3,0.7504]
[1743181142564,5.33704,1873.7,1873.5,0.8136]
[1743181142776,5.33745,1873.6,1873.3,0.8136]
[1743181143059,5.33745,1873.6,1873.3,6.1517]
[1743181143763,5.33704,1873.7,1873.3,11.4897]
[1743181143964,5.33704,1873.7,1873.3,11.48966]
[1743181144166,5.33704,1873.7,1873.3,11.48962]
[1743181144766,5.33704,1873.7,1873.3,6.1516]
[1743181144971,5.33704,1873.7,1873.3,11.48958]
[1743181145273,5.33704,1873.7,1873.3,6.15158]
[1743181145739,10.67424,1873.7,1873.3,6.15158]
[1743181145939,5.33704,1873.7,1873.3,11.48961]
[1743181146269,10.67433,1873.7,1873.3,6.15158]
[1743181146469,5.33743,1873.6,1873.3,6.15158]
[1743181146667,5.33703,1873.7,1873.3,0.8136]
[1743181146849,5.33735,1873.6,1873.2,6.12681]
[1743181147049,5.33735,1873.6,1873.3,5.33816]
[1743181147469,5.33735,1873.6,1873.2,6.12681]
[1743181147662,5.33735,1873.6,1873.2,11.46517]
[1743181148376,5.33735,1873.6,1873.3,5.3381]
[1743181148670,5.33735,1873.6,1873.2,11.46516]
[1743181148972,10.67483,1873.6,1873.2,11.46516]
[1743181149168,5.33735,1873.6,1873.3,5.33812]
[1743181149376,10.67487,1873.6,1873.2,6.12681]
[1743181149552,1.07666459,1873.8,1873.3,5.33802]
[1743181149553,5.33704,1873.7,1873.3,5.33802]
[1743181149752,5.33704,1873.7,1873.3,10.67601]
[1743181150074,5.33735,1873.6,1873.2,6.12701]
[1743181150391,5.33772,1873.5,1873.2,6.12692]
[1743181151183,5.33772,1873.5,1873.2,11.46523]
[1743181151483,10.67483,1873.6,1873.2,6.12691]
[1743181151699,5.33735,1873.6,1873.2,11.46525]
[1743181151915,10.67488,1873.6,1873.2,11.46521]
[1743181152088,5.33763,1873.5,1873.2,6.1269]
[1743181152407,5.33782,1873.5,1873.2,0.7886]
[1743181152710,28.255,1874.1,1873.8,5.33662]
[1743181152920,33.5909,1874.1,1873.8,5.33662]
[1743181153092,38.92701,1874.1,1873.7,11.43987]
[1743181153305,33.5909,1874.1,1873.7,11.43987]
[1743181154092,34.68031208,1874.1,1873.7,6.10289]
[1743181154595,5.3363,1874.0,1873.7,6.10289]
[1743181155102,34.68031208,1874.1,1873.8,5.33666]
[1743181155312,29.34441208,1874.1,1873.7,0.766]
[1743181155605,6.06,1874.3,1874.1,5.33577]
[1743181156412,5.3357,1874.2,1873.8,6.12904]
[1743181156574,5.3357,1874.2,1873.8,11.46559]
[1743181156769,11.39551,1874.3,1873.7,5.337]
[1743181156770,5.33618,1874.0,1873.7,5.337]
[1743181157079,5.33618,1874.0,1873.6,5.33728]
[1743181157080,5.33647,1873.9,1873.6,0.7924]
[1743181157606,5.33647,1873.9,1873.6,6.12971]
[1743181158000,5.33618,1874.0,1873.6,6.12971]
[1743181158202,5.33618,1874.0,1873.6,11.46687]
[1743181158703,5.33592,1874.1,1873.7,5.33688]
[1743181159419,5.33618,1874.0,1873.7,5.33688]
[1743181159827,6.40460685,1874.0,1873.7,5.33688]
[1743181160321,1.06842685,1874.0,1873.7,10.67382]
[1743181160505,10.62262,1874.2,1873.7,10.67382]
[1743181160506,10.62262,1874.2,1873.8,5.33664]
[1743181160723,1.04497906,1874.1,1873.8,10.67327]
[1743181161019,6.38103906,1874.1,1873.7,6.483642]
[1743181161203,5.33617,1874.0,1873.7,5.33702]
[1743181161395,5.33617,1874.0,1873.7,10.67388]
[1743181161591,6.38103906,1874.1,1873.7,10.67388]
[1743181162107,1.04497906,1874.1,1873.8,5.33659]
[1743181162302,1.04497906,1874.1,1873.9,6.16389]
[1743181162617,6.06,1874.3,1874.0,5.33598]
[1743181162816,7.15306929,1874.3,1874.0,5.33598]
[1743181163126,12.48839929,1874.3,1874.0,5.33598]
[1743181163324,7.15306929,1874.3,1874.0,10.67201]
[1743181163487,7.15306929,1874.3,1874.0,5.33598]
[1743181164318,7.15306929,1874.3,1874.1,5.3358]
[1743181164713,6.06,1874.3,1874.1,5.3358]
[1743181165429,6.06,1874.3,1874.0,5.33598]
[1743181165838,6.06,1874.3,1874.1,5.3358]
[1743181166128,6.06,1874.3,1874.0,10.672]
[1743181166693,6.40204209,1874.4,1874.1,5.33588]
[1743181166890,1.06695209,1874.4,1874.2,6.14698]
[1743181167232,6.40706921,1874.5,1874.2,6.14709]
[1743181167723,1.07218921,1874.5,1874.2,6.14699]
[1743181168034,11.74196921,1874.5,1874.2,0.8115]
[1743181168196,5.33512,1874.4,1874.2,0.8115]
[1743181169030,6.40703921,1874.5,1874.2,6.147]
[1743181170028,11.74196921,1874.5,1874.2,0.8115]
[1743181170197,5.33508,1874.4,1874.2,0.8115]
[1743181170398,6.40703921,1874.5,1874.2,6.14706]
[1743181170632,5.33513,1874.4,1874.1,5.33573]
[1743181170930,5.33535,1874.3,1874.0,5.33615]
[1743181171128,5.33535,1874.3,1873.9,11.45135]
[1743181171335,5.33569,1874.2,1873.9,6.11495]
[1743181171720,5.33569,1874.2,1873.9,6.11506]
[1743181173528,5.33569,1874.2,1873.9,0.7786]
[1743181173836,5.33599,1874.1,1873.7,11.50515]
[1743181174000,5.33599,1874.1,1873.8,5.33668]
[1743181174193,5.33619,1874.0,1873.7,6.16818]
[1743181174627,5.33599,1874.1,1873.8,5.33673]
[1743181176238,0.55,1874.2,1873.7,0.8313]
[1743181176407,0.55,1874.2,1873.6,10.67448]
[1743181176408,5.33656,1873.9,1873.6,10.67448]
[1743181176606,5.33656,1873.9,1873.6,5.33718]
[1743181176816,5.33656,1873.9,1873.6,10.67435]
[1743181177105,11.74865245,1874.0,1873.6,10.67435]
[1743181177436,6.41237245,1874.0,1873.7,5.33688]
[1743181181040,11.74872245,1874.0,1873.7,5.33688]
[1743181181337,11.74872245,1874.0,1873.6,5.33717]
[1743181181524,6.41237245,1874.0,1873.7,5.33699]
[1743181181725,1.07614245,1874.0,1873.7,5.3369]
[1743181182104,5.3355,1874.3,1873.9,6.11616]
[1743181182309,39.64514,1874.4,1874.0,10.67193]
[1743181182509,39.64514,1874.4,1874.1,5.33586]
[1743181182837,29.29381429,1874.4,1874.2,0.7952]
[1743181183130,34.62893429,1874.4,1874.2,0.7952]
[1743181183531,6.37893429,1874.4,1874.2,0.7952]
[1743181183737,1.04381429,1874.4,1874.2,6.13069]
[1743181184040,19.67928,1874.7,1874.3,5.33532]
[1743181184223,1.08608278,1874.6,1874.4,5.33486]
[1743181184427,6.06,1874.7,1874.4,5.33486]
[1743181184809,6.06,1874.7,1874.5,5.33471]
[1743181185027,11.39395,1874.8,1874.5,5.33471]
[1743181185931,1.089829,1874.7,1874.5,5.33471]
[1743181188038,1.089829,1874.7,1874.3,5.33529]
[1743181188255,5.33449,1874.6,1874.2,11.46623]
[1743181188556,5.33449,1874.6,1874.2,6.13067]
[1743181188723,5.33449,1874.6,1874.3,5.33531]
[1743181189443,6.424029,1874.7,1874.3,10.6704]
[1743181189644,6.424029,1874.7,1874.3,10.67025]
[1743181189825,6.424029,1874.7,1874.3,5.33509]
[1743181190029,6.424029,1874.7,1874.3,10.6703]
[1743181191160,6.424029,1874.7,1874.3,5.33509]
[1743181191331,6.424029,1874.7,1874.4,5.335]
[1743181191862,6.424029,1874.7,1874.3,10.6703]
[1743181192362,11.758389,1874.7,1874.3,10.6703]
[1743181192755,5.33455,1874.6,1874.3,5.33509]
[1743181192967,0.55,1874.6,1874.1,5.33572]
[1743181193140,5.33484,1874.5,1874.1,5.33572]
[1743181193347,5.33484,1874.5,1874.2,5.33551]
[1743181194363,1.089829,1874.7,1874.0,0.8261]
[1743181194539,6.372829,1874.7,1874.4,6.15842]
[1743181194746,5.33448,1874.6,1874.3,6.15868]
[1743181195255,11.707239,1874.7,1874.3,11.49378]
[1743181195646,11.707169,1874.7,1874.3,6.1585]
[1743181195861,5.33451,1874.6,1874.3,6.1585]
[1743181196070,5.33451,1874.6,1874.3,5.33529]
[1743181196264,5.33451,1874.6,1874.3,5.3352]
[1743181197274,10.66916,1874.6,1874.3,5.3352]
[1743181197449,10.66913,1874.6,1874.3,5.3352]
[1743181198039,5.33451,1874.6,1874.3,5.3352]
[1743181198240,10.66914,1874.6,1874.3,5.3352]
[1743181198436,5.33451,1874.6,1874.3,5.3352]
[1743181198641,10.66914,1874.6,1874.2,5.33549]
[1743181199071,10.66914,1874.6,1874.2,10.67098]
[1743181199475,10.66917,1874.6,1874.2,10.67098]
[1743181199687,5.33477,1874.5,1874.2,5.33549]
[1743181200111,5.33514,1874.4,1874.0,5.33606]
[1743181200405,5.3366,1873.9,1873.5,5.3375]
[1743181200541,5.33622,1874.0,1873.6,6.14026]
[1743181200742,5.33594,1874.1,1873.7,5.3369]
[1743181200942,11.39515,1874.4,1874.1,5.33586]
[1743181201173,5.33462,1874.6,1874.2,5.33533]
[1743181201378,5.33462,1874.6,1874.3,5.33523]
[1743181201760,12.10716041,1874.7,1874.1,5.33579]
[1743181201761,5.33496,1874.5,1874.1,5.33579]
[1743181201960,5.3345,1874.6,1874.2,5.33546]
[1743181202178,5.3345,1874.6,1874.3,5.33521]
[1743181202348,5.3345,1874.6,1874.3,6.10821]
[1743181202746,5.283,1874.7,1874.0,5.33591]
[1743181202972,5.33497,1874.5,1874.1,6.1088]
[1743181203169,5.33508,1874.4,1874.1,6.1088]
[1743181204080,5.33508,1874.4,1874.0,10.67192]
[1743181204387,5.33508,1874.4,1874.1,5.33587]
[1743181205875,6.38339302,1874.5,1874.1,5.33569]
[1743181206079,11.71833302,1874.5,1874.1,5.33569]
[1743181206579,5.33505,1874.4,1874.1,5.33569]
[1743181206779,5.33505,1874.4,1874.1,10.67148]
[1743181206945,1.04863302,1874.5,1874.2,0.7535]
[1743181207148,1.04863302,1874.5,1874.3,5.33517]
[1743181208178,1.04863302,1874.5,1874.2,6.08909]
[1743181208361,6.38353302,1874.5,1874.2,0.7535]
[1743181208947,1.04863302,1874.5,1874.0,6.13604]
[1743181209173,5.33527,1874.4,1874.0,6.13604]
[1743181209357,5.33527,1874.4,1874.0,11.47203]